Cogmind - Beta 16 @@@ ROGUE MODE // 2026.01.02 @ 01:13:47 Player: telemetry Result: Destroyed by S-27 Virus with Autogun Performance ------------- Evolutions (4) 2000 Regions Visited (9) 1800 Robots Destroyed (75) 375 Value Destroyed (1861) 1861 Prototype IDs (40) 800 Alien Tech Used (0) 0 Bonus (345) 345 TOTAL SCORE: 7181 Bonus ------- Follower Combat Kills 54 Met Data Miner 300 Friendly Fire -9 Cogmind --------- Core Integrity 0/850 Matter 86/300 Energy 150/150 System Corruption 3% Temperature Cool (0) Movement Flying (34) Location -5/Proximity Caves Parts ------- > --- POWER (1) -------- Micro Nuclear Core > --- PROPULSION (5) --- Cesium-ion Thruster Xenon Bombardment Thruster > --- UTILITY (7) ------ Improved Signal Interpreter > --- WEAPON (2) ------- Heavy Flail > --- INVENTORY (5) ---- Hardened Heavy Armor Plating Molecular Deconstructor Heavy Pick Peak State ------------ > --- POWER ------------ Micro Nuclear Core > --- PROPULSION ------- Cesium-ion Thruster Cesium-ion Thruster Xenon Bombardment Thruster Xenon Bombardment Thruster > --- UTILITY ---------- Improved Signal Interpreter ECM Suite Reaction Control System Heart of Steel > --- WEAPON ----------- Heavy Flail > --- INVENTORY -------- Hardened Heavy Armor Plating Molecular Deconstructor Heavy Pick [Rating: 55] Favorites ----------- Power Micro Nuclear Core Engine Heavy Ion Engine Power Core Micro Nuclear Core Propulsion Light Treads Treads Light Treads Leg Aluminum Leg Wheel Wheel Hover Unit Aerolev Unit Flight Unit Xenon Bombardment Thruster Utility Small Storage Unit Device ECM Suite Storage Small Storage Unit Processor Improved Signal Interpreter Hackware Hacking Suite Protection Makeshift Thermal Plating Weapon Light Assault Rifle Energy Gun EM Pulse Gun Energy Cannon Powered Cannon Ballistic Gun Light Assault Rifle Ballistic Cannon Flak Cannon Launcher Rocket Launcher Special Weapon Plasma Cutter Impact Weapon Great Maul Build | -11 -10 -10 -8 -7 -6 -6 -6 -6 -5 ------- Run | Yrd Mat Sub Mat Fac Fac Low Low Dat Pro Slots Evolved 8 | . . . 4 2 2 . . . . Power . | . . . . . . . . . . Propulsion 3 | . . . 2 1 . . . . . Utility 5 | . . . 2 1 2 . . . . Weapon . | . . . . . . . . . . Parts Attached 76 | 7 7 7 30 7 10 6 1 . 1 Power 13 | 1 2 1 4 1 3 1 . . . Engine 6 | 1 2 1 1 . 1 . . . . Core 7 | . . . 3 1 2 1 . . . Reactor . | . . . . . . . . . . Propulsion 29 | 2 2 1 15 2 5 2 . . . Treads 6 | 2 2 1 1 . . . . . . Leg 8 | . . . 8 . . . . . . Wheel 1 | . . . 1 . . . . . . Hover 7 | . . . 5 1 1 . . . . Flight 7 | . . . . 1 4 2 . . . Utility 20 | 1 1 2 7 3 2 3 1 . . Device 9 | . 1 1 1 2 2 1 1 . . Storage 3 | 1 . . 2 . . . . . . Processor 2 | . . . 1 . . 1 . . . Hackware 2 | . . . 1 1 . . . . . Protection 4 | . . 1 2 . . 1 . . . Artifact . | . . . . . . . . . . Weapon 14 | 3 2 3 4 1 . . . . 1 Energy Gun 1 | 1 . . . . . . . . . Energy Cannon 1 | . . 1 . . . . . . . Ballistic Gun 7 | 2 1 1 3 . . . . . . Ballistic Cannon 1 | . . . 1 . . . . . . Launcher 1 | . 1 . . . . . . . . Special Weapon 1 | . . 1 . . . . . . . Impact Weapon 2 | . . . . 1 . . . . 1 Slashing Weapon . | . . . . . . . . . . Piercing Weapon . | . . . . . . . . . . Special Melee Weapon . | . . . . . . . . . . Unidentified Prototypes 5 | . . . 3 1 . . 1 . . Parts Lost 34 | . . 5 11 1 12 . 1 . 4 Power 4 | . . 1 2 . 1 . . . . Propulsion 16 | . . 1 5 1 6 . 1 . 2 Utility 9 | . . . 3 . 4 . . . 2 Weapon 5 | . . 3 1 . 1 . . . . Highest Loss Streak 11 | . . 4 4 1 11 . 1 . 3 To Critical Strikes . | . . . . . . . . . . Average Backups 6 | . 6 7 7 9 9 3 4 3 3 Power . | . . . . 1 . 1 1 1 . Propulsion . | . . . . 1 2 . . . . Utility 3 | . 2 5 3 4 3 1 . 1 1 Weapon 1 | . 2 . . 1 . . 1 1 1 Tool/Special . | . . . . . . . . . . Unused Backups 22 | . 6 . 6 4 1 . 3 . 2 Power 3 | . 1 . . 1 . . 1 . . Propulsion 1 | . . . 1 . . . . . . Utility 8 | . 1 . 4 2 . . 1 . . Weapon 8 | . 4 . 1 1 . . . . 2 Tool/Special 2 | . . . . . 1 . 1 . . Average Slot Usage (%) 82 | . 97 74 89 99 72 59 64 60 62 Engine 5 | . 13 5 6 . . . . . . Core 2 | . . . 1 6 4 6 6 6 6 Treads 13 | . 27 26 1 . . . . . . Leg 3 | . . . 20 . . . . . . Hover 6 | . . . 7 36 23 . . . . Flight 4 | . . . . 1 . 31 32 26 25 Device 11 | . 12 10 8 6 14 7 14 20 17 Storage 10 | . 14 13 15 7 5 . . . . Processor 3 | . . . 8 7 5 4 6 6 6 Hackware 2 | . . . 1 14 10 . . . . Protection 1 | . . 2 1 . . 3 3 . . Energy Cannon 1 | . . 5 1 . . . . . . Ballistic Gun 9 | . 27 2 10 7 . 4 . . . Special Weapon 1 | . . 6 . . . . . . . Impact Weapon 1 | . . . . 6 5 . . . 5 Peak Build Rating 55 | 6 9 24 36 45 51 42 54 50 55 Average Rating 24 | 4 7 14 27 44 39 35 37 50 50 On Entrance 27 | . 6 8 21 36 45 17 41 50 50 Avg Prop Armor Cover (%) 12 | . . . 8 3 17 . . . . Naked Turns 95 | . . . . . 95 . . . . Heaviest Build 34 | 13 14 20 34 27 23 31 31 19 22 Greatest Support 50 | 40 40 40 50 40 44 31 31 24 24 Greatest Overweight (x) 7 | . . . 7 . 7 . . . . Average Overweight (x) . | . . . . . . . . . . Largest Inventory Capacity 10 | 8 8 8 10 10 10 5 5 5 5 Average Capacity 7 | 6 8 8 8 10 9 5 5 5 5 Most Carried 10 | 1 8 8 10 10 10 5 5 4 5 Average Carried 7 | . 6 7 7 9 9 3 4 4 4 Final Capacity 10 | 8 8 8 10 10 5 5 5 5 5 Final Carried 10 | 1 8 8 10 10 4 4 4 4 5 Class Distribution -------------------- 51% | Mutant 19% | Scavenger-Mutant 13% | Sprinter 6% | Hacker-Assassin 6% | Hacker-Mutant Dominant Class ---------------- Mutant | -10/Materials Mutant | -10/Subcaves Scavenger-Mutant | -8/Materials Hacker-Mutant | -7/Factory Hacker-Assassin | -6/Factory Sprinter | -6/Lower Caves Sprinter | -6/Lower Caves Sprinter | -6/Data Miner Sprinter | -5/Proximity Caves Resources | -11 -10 -10 -8 -7 -6 -6 -6 -6 -5 ----------- Run | Yrd Mat Sub Mat Fac Fac Low Low Dat Pro Matter Collected 2509 | 72 522 257 911 122 . 242 95 . 288 Remotely . | . . . . . . . . . . Salvage Created 2328 | . 743 119 1283 132 33 . . . 18 Parts 152 | . 58 12 71 8 2 . . . 1 Haulers Intercepted 8 | . 2 . 5 1 . . . . . Recyclers Shooed 2 | . 2 . . . . . . . . Parts Field Recycled . | . . . . . . . . . . Retrieved Matter . | . . . . . . . . . . Parts Self-Destructed 24 | . . 12 . . . 4 . . 8 Prevented . | . . . . . . . . . . Parts Restored . | . . . . . . . . . . Kills | -11 -10 -10 -8 -7 -6 -6 -6 -6 -5 ------- Run | Yrd Mat Sub Mat Fac Fac Low Low Dat Pro Combat Hostiles Destroyed 50 | . 17 7 22 1 2 . . . 1 Melee 4 | . . . . 1 2 . . . 1 Guns 30 | . 17 . 13 . . . . . . Cannons 12 | . . 3 9 . . . . . . AOE 3 | . . 3 . . . . . . . Classes Destroyed 13 | . 7 2 3 1 . . . . . Worker 4 | . 2 . 2 . . . . . . Builder 3 | . . . 2 1 . . . . . Hauler 8 | . 2 . 5 1 . . . . . Recycler 2 | . 2 . . . . . . . . Operator 4 | . 2 . 1 1 . . . . . Watcher 4 | . 2 . 2 . . . . . . Swarmer 19 | . 9 3 4 . 2 . . . 1 Grunt 19 | . 8 . 11 . . . . . . Duelist 1 | . . . 1 . . . . . . Sentry 6 | . . 1 5 . . . . . . Hunter 1 | . . . 1 . . . . . . Programmer 1 | . . . . 1 . . . . . Subdweller 3 | . . 3 . . . . . . . Best Kill Streak 9 | . 5 3 9 1 1 . . . 1 Combat Bots Only 5 | . 5 3 5 1 1 . . . 1 Max Kills in Single Turn 2 | . 2 2 2 1 1 . . . 1 Gunslinging 1 | . 1 . . . . . . . . Exploded 2 | . . 2 . . . . . . . Melee 1 | . . . . 1 1 . . . 1 Uniques/NPCs Destroyed . | . . . . . . . . . . Combat | -11 -10 -10 -8 -7 -6 -6 -6 -6 -5 -------- Run | Yrd Mat Sub Mat Fac Fac Low Low Dat Pro Hostile Shots Fired 562 | . 98 49 171 23 157 4 14 . 46 Missed 190 | . 25 12 46 14 55 3 7 . 28 Hits 372 | . 73 37 125 9 102 1 7 . 18 Melee 1 | . . . 1 . . . . . . Projectile 371 | . 73 37 124 9 102 1 7 . 18 AOE 1 | . . . . . 1 . . . . Critical Strikes 11 | . . 3 5 . 1 . 1 . 1 Damage Taken 5420 | . 684 743 1905 120 1497 17 125 . 329 Core 1331 | . 113 103 244 16 655 . 42 . 158 Absorbed by Shields . | . . . . . . . . . . Ignored by Resistances 5 | . . 5 . . . . . . . Regen/Repaired (Parts) 252 | . 149 . 103 . . . . . . Core Remaining (%) 66 | 100 . 13 55 97 . . . . . Volleys Fired 272 | . 94 53 106 19 . . . . . Largest 2 | . 2 1 2 1 . . . . . Hottest 62 | . 40 40 62 25 . . . . . Shots Fired 422 | . 188 53 162 19 . . . . . Gun 351 | . 187 25 120 19 . . . . . Cannon 59 | . . 17 42 . . . . . . Launcher 7 | . 1 6 . . . . . . . Special 5 | . . 5 . . . . . . . Kinetic 379 | . 187 25 148 19 . . . . . Thermal 36 | . . 22 14 . . . . . . Explosive 7 | . 1 6 . . . . . . . Electromagnetic . | . . . . . . . . . . Robot Hit Streak 26 | . 26 8 13 6 . . . . . Robot Miss Streak 10 | . 5 2 10 3 . . . . . Penetration Max . | . . . . . . . . . . Secondary Targets 5 | . 5 . . . . . . . . Max Gunslinging Chain 1 | . 1 . . . . . . . . Shots Hit Robots 285 | . 126 29 106 14 9 . . . 1 Core Hits 145 | . 51 12 75 4 2 . . . 1 Critical Kills 2 | . . 1 . . 1 . . . . Critical Parts Destroyed 3 | . . . 2 . 1 . . . . Critical Strikes 5 | . . 1 2 . 2 . . . . Meltdown 1 | . . 1 . . . . . . . Destroy 2 | . . . 2 . . . . . . Smash 2 | . . . . . 2 . . . . Melee Attacks 46 | . . . . 17 27 . . . 2 Impact 46 | . . . . 17 27 . . . 2 Slashing . | . . . . . . . . . . Piercing . | . . . . . . . . . . Sneak Attacks . | . . . . . . . . . . Combat Hostiles . | . . . . . . . . . . Follow-up Attacks . | . . . . . . . . . . Damage Inflicted 4925 | . 1101 767 2301 289 390 . . . 77 Guns 2805 | . 1067 132 1376 230 . . . . . Cannons 1284 | . . 369 915 . . . . . . Explosions 287 | . 31 256 . . . . . . . Melee 526 | . . . . 59 390 . . . 77 Ramming 13 | . 3 . 10 . . . . . . Kinetic 3338 | . 1067 132 1909 230 . . . . . Thermal 761 | . . 379 382 . . . . . . Explosive 287 | . 31 256 . . . . . . . Electromagnetic . | . . . . . . . . . . Impact 526 | . . . . 59 390 . . . 77 Slashing . | . . . . . . . . . . Piercing . | . . . . . . . . . . Highest Corruption 3 | . 2 2 1 . 1 1 1 1 3 Average Corruption 1 | . 2 2 1 . 1 1 1 1 1 Corruption Purged . | . . . . . . . . . . Corruption Blocked . | . . . . . . . . . . Effects 48 | . 18 19 1 . . 1 3 . 6 Message Errors 9 | . 3 5 . . . 1 . . . Matter Fused 9 | . 3 4 . . . . . . 2 Heat Flow Errors 4 | . 1 2 . . . . . . 1 Energy Discharges 7 | . 3 . 1 . . . 2 . 1 Data Loss (minor) 8 | . 4 3 . . . . . . 1 Data Loss (major) 6 | . 3 3 . . . . . . . Misfires 1 | . 1 . . . . . . . . Alerts 4 | . . 2 . . . . 1 . 1 Overload Shots . | . . . . . . . . . . Overflow Damage 92 | . 16 . . . 76 . . . . Projectiles . | . . . . . . . . . . Explosions 16 | . 16 . . . . . . . . Melee 76 | . . . . . 76 . . . . Knockbacks 8 | . . . 7 . 1 . . . . Impact 1 | . . . . . 1 . . . . Kinetic 7 | . . . 7 . . . . . . Secondary . | . . . . . . . . . . Self-Inflicted Damage 123 | . . 38 85 . . . . . . Shots 2 | . . 1 1 . . . . . . Rammed 3 | . 2 . 1 . . . . . . Targets Rammed 3 | . 2 . 1 . . . . . . Kicked . | . . . . . . . . . . Crushed . | . . . . . . . . . . Highest Temperature 301 | . 159 195 77 13 4 196 301 . 225 Average Temperature 54 | . 25 102 19 5 4 78 109 . 99 Received Heat Transfer 1741 | . 195 331 837 30 312 . 9 . 27 Effects 1 | . . . . . . . 1 . . Interference 1 | . . . . . . . 1 . . Siege Activations . | . . . . . . . . . . Martial Activations . | . . . . . . . . . . Shielding Activations . | . . . . . . . . . . Robots Disrupted . | . . . . . . . . . . Combat Hostiles . | . . . . . . . . . . Robots Corrupted . | . . . . . . . . . . Combat Hostiles . | . . . . . . . . . . Parts Fried . | . . . . . . . . . . Impact Corruptions 4 | . . . . . 4 . . . . Robots Melted 1 | . . 1 . . . . . . . Combat Hostiles 1 | . . 1 . . . . . . . Parts Melted 1 | . . 1 . . . . . . . Heat Transferred 37 | . . 37 . . . . . . . Parts Sabotaged . | . . . . . . . . . . Parts Stolen . | . . . . . . . . . . Parts Stripped . | . . . . . . . . . . Power Chain Reactions . | . . . . . . . . . . Alert | -11 -10 -10 -8 -7 -6 -6 -6 -6 -5 ------- Run | Yrd Mat Sub Mat Fac Fac Low Low Dat Pro Maximum Alert Level 1 | . . . 1 1 1 . . . . Low Security (%) 92 | 100 100 . 81 95 95 . . . . Level 1 7 | . . . 18 4 4 . . . . Level 2 . | . . . . . . . . . . Level 3 . | . . . . . . . . . . Level 4 . | . . . . . . . . . . Level 5 . | . . . . . . . . . . High Security . | . . . . . . . . . . Max Security . | . . . . . . . . . . Peak Influence 329 | . 197 . 329 200 242 . . . . Initial 145 | . . . . 145 91 . . . . Average 77 | . 32 . 104 133 91 . . . . Influence Increases 2632 | . 522 90 881 285 559 . 15 . 280 Destroy 0b10 Robot/C 1000 | . 340 80 440 20 40 . . . 80 Destroy 0b10 Robot/NC 125 | . 50 . 60 15 . . . . . Destroy Leader 222 | . 78 10 124 10 . . . . . Allied During Kill 5 | . . . . . . . . . 5 Successful Hack 126 | . 25 . 44 46 11 . . . . Select Force Hacks 30 | . . . . . 30 . . . . Disable Machine 105 | . 15 . 75 15 . . . . . Destroy Structure 74 | . 14 . 33 14 13 . . . . Partial Spotted 60 | . . . 30 30 . . . . . Lose Combat Pursuer 885 | . . . 75 135 465 . 15 . 195 Influence Decreases 2489 | . 482 130 560 418 513 168 66 15 137 Entered New Map 409 | . . 20 . 176 97 88 13 15 . Time Decay 1584 | . 332 70 454 222 296 80 53 . 77 Lost Part 316 | . . 40 106 10 120 . . . 40 Lost Ally 30 | . . . . 10 . . . . 20 Purge Threat 150 | . 150 . . . . . . . . Squads Dispatched 25 | . 3 . 5 8 7 . 1 . 1 Investigation 10 | . 1 . 3 4 2 . . . . Extermination 4 | . . . . 2 2 . . . . Reinforcement 7 | . 2 . 2 2 1 . . . . Assault 2 | . . . . . . . 1 . 1 Garrison 2 | . . . . . 2 . . . . Intercept . | . . . . . . . . . . Searches Triggered . | . . . . . . . . . . Construction Impeded 1 | . . . . 1 . . . . . Haulers Reinforced . | . . . . . . . . . . Active Scanning Responses . | . . . . . . . . . . Cargo Convoy Interrupts . | . . . . . . . . . . Stealth | -11 -10 -10 -8 -7 -6 -6 -6 -6 -5 --------- Run | Yrd Mat Sub Mat Fac Fac Low Low Dat Pro Distress Signals 6 | . 4 . 1 1 . . . . . Communications Jammed . | . . . . . . . . . . Distress Signals . | . . . . . . . . . . Times Spotted 185 | . 40 12 39 13 31 5 9 . 36 Peak Tracking Total 18 | . 6 4 5 9 8 3 9 . 18 Tactical Retreats 24 | . 2 . 2 5 9 . 2 . 4 ECM-based Alert Blocks 14 | . 6 . . 5 . . 1 . 2 Traps | -11 -10 -10 -8 -7 -6 -6 -6 -6 -5 ------- Run | Yrd Mat Sub Mat Fac Fac Low Low Dat Pro Traps Triggered 5 | . 4 . . 1 . . . . . Indirectly . | . . . . . . . . . . Trap Hack Attempts . | . . . . . . . . . . Triggered . | . . . . . . . . . . Disarmed 6 | . . . . 6 . . . . . Reprogrammed . | . . . . . . . . . . Reused . | . . . . . . . . . . Traps Extracted . | . . . . . . . . . . Installed . | . . . . . . . . . . Triggered . | . . . . . . . . . . Machines | -11 -10 -10 -8 -7 -6 -6 -6 -6 -5 ---------- Run | Yrd Mat Sub Mat Fac Fac Low Low Dat Pro Machines Disabled 9 | . 1 1 5 1 . . . . 1 Max in Single Turn 2 | . 1 1 2 1 . . . . 1 Garrison Access 2 | . . . . 1 1 . . . . Machines Repaired . | . . . . . . . . . . Machines Dismantled . | . . . . . . . . . . Machines Sabotaged . | . . . . . . . . . . Overloaded Fab Kills . | . . . . . . . . . . Hacking | -11 -10 -10 -8 -7 -6 -6 -6 -6 -5 --------- Run | Yrd Mat Sub Mat Fac Fac Low Low Dat Pro Machines Accessed 38 | . 6 1 10 11 5 . 1 4 . Terminals 25 | . 5 . 8 9 3 . . . . Fabricators . | . . . . . . . . . . Repair Stations 3 | . 1 . 1 1 . . . . . Recycling Units . | . . . . . . . . . . Scanalyzers 2 | . . . 1 . 1 . . . . Garrison Access 2 | . . . . 1 1 . . . . Total Hacks 162 | . 28 1 46 40 14 . 1 32 . Successful 112 | . 15 1 34 23 6 . 1 32 . Failed 49 | . 13 . 11 17 8 . . . . Catastrophic 4 | . 1 . 1 1 1 . . . . Database Lockouts 1 | . . . 1 . . . . . . Manual 47 | . 12 . 13 15 6 . . . 1 Terminals 94 | . 22 . 29 34 9 . . . . Fabricators . | . . . . . . . . . . Repair Stations 12 | . 6 . 2 4 . . . . . Recycling Units . | . . . . . . . . . . Scanalyzers 18 | . . . 15 . 3 . . . . Garrison Access 4 | . . . . 2 2 . . . . Terminal Hacks 76 | . 7 1 14 19 2 . 1 32 . Record 13 | . . . 2 . . . . 11 . Part Schematic 11 | . . . . . . . . 11 . Robot Schematic 7 | . . . . . . . . 7 . Robot Analysis 8 | . 3 . 2 3 . . . . . Prototype ID Bank 10 | . 2 . 3 2 . . . 3 . Open Door 1 | . . . . . . . 1 . . Open DSF 1 | . . . . 1 . . . . . Level Access Points 1 | . 1 . . . . . . . . Branch Access Points 1 | . . . . 1 . . . . . Fabricator Index 1 | . . . . 1 . . . . . Scanalyzer Index 1 | . . . . 1 . . . . . Alert Level 1 | . . . . 1 . . . . . Unreport Threat 1 | . 1 . . . . . . . . Locate Traps 3 | . . . 1 1 1 . . . . Disarm Traps 1 | . . . . 1 . . . . . Surveillance Status 1 | . . . . 1 . . . . . Patrol Status 2 | . . . 1 1 . . . . . Registered Components 1 | . . . . 1 . . . . . Registered Prototypes 3 | . . . 1 1 1 . . . . Zone Layout 7 | . . . 4 3 . . . . . Proto ID Catalog 1 | . . 1 . . . . . . . Fabricator Hacks . | . . . . . . . . . . Repair Station Hacks 9 | . 6 . 2 1 . . . . . Scan Component 5 | . 3 . 1 1 . . . . . Repair 4 | . 3 . 1 . . . . . . Recycling Unit Hacks . | . . . . . . . . . . Scanalyzer 15 | . . . 14 . 1 . . . . Insert Component 4 | . . . 4 . . . . . . Analyze 6 | . . . 6 . . . . . . Retrieve Study 5 | . . . 4 . 1 . . . . Garrison Access Hacks 2 | . . . . 1 1 . . . . Seal Access 2 | . . . . 1 1 . . . . Unauthorized Hacks 10 | . 2 . 4 2 2 . . . . Terminals 9 | . 2 . 4 2 1 . . . . Assimilate 1 | . . . 1 . . . . . . Botnet 8 | . 2 . 3 2 1 . . . . Fabricators . | . . . . . . . . . . Repair Stations . | . . . . . . . . . . Recycling Units . | . . . . . . . . . . Scanalyzers 1 | . . . . . 1 . . . . Extract 1 | . . . . . 1 . . . . Garrison Access . | . . . . . . . . . . Data Cores Recovered 1 | . . . . 1 . . . . . Used 1 | . . . . 1 . . . . . Hacking Detections 27 | . 5 . 8 9 5 . . . . Full Trace Events 13 | . 3 . 5 4 1 . . . . Feedback Events 1 | . . . 1 . . . . . . Corruption 1 | . . . 1 . . . . . . Feedback Blocked . | . . . . . . . . . . Robot Schematics Acquired 7 | . . . . . . . . 7 . Robots Built . | . . . . . . . . . . Authchips . | . . . . . . . . . . Time . | . . . . . . . . . . Total Robot Build Rating . | . . . . . . . . . . Part Schematics Acquired 20 | . . . 4 . 5 . . 11 . Parts Built . | . . . . . . . . . . Authchips . | . . . . . . . . . . Time . | . . . . . . . . . . Total Part Build Rating . | . . . . . . . . . . Part Studies Acquired 5 | . . . 4 . 1 . . . . Parts Repaired 4 | . 3 . 1 . . . . . . Time 116 | . 78 . 38 . . . . . . Parts Recycled . | . . . . . . . . . . Recycled Matter . | . . . . . . . . . . Retrieved Matter . | . . . . . . . . . . Retrieved Components . | . . . . . . . . . . Parts Scanalyzed 4 | . . . 4 . . . . . . Part Schematics Acquired 4 | . . . 4 . . . . . . Parts Damaged . | . . . . . . . . . . Bothacking | -11 -10 -10 -8 -7 -6 -6 -6 -6 -5 ------------ Run | Yrd Mat Sub Mat Fac Fac Low Low Dat Pro Used RIF Installer . | . . . . . . . . . . Robots Hacked . | . . . . . . . . . . Non-combat . | . . . . . . . . . . Combat . | . . . . . . . . . . Robot Hacks Applied . | . . . . . . . . . . Relay Couplers Released . | . . . . . . . . . . Fabnet Peak Effective % . | . . . . . . . . . . Robots Rewired . | . . . . . . . . . . Allies Hacked . | . . . . . . . . . . Hacks Repelled . | . . . . . . . . . . Allies | -11 -10 -10 -8 -7 -6 -6 -6 -6 -5 -------- Run | Yrd Mat Sub Mat Fac Fac Low Low Dat Pro Total Allies 2 | . . . 1 . . . . . 1 Largest Group 1 | . . . 1 1 . . . . 1 Highest-Rated Group 96 | . . . 10 10 . . . . 96 Highest-Rated Ally 96 | . . . 10 10 . . . . 96 Total Orders . | . . . . . . . . . . Ally Attacks 16 | . . . . . . . . . 16 Total Damage 600 | . . . . . . . . . 600 Kills 3 | . . . . . . . . . 3 Allies Corrupted . | . . . . . . . . . . Allies Melted . | . . . . . . . . . . Intel | -11 -10 -10 -8 -7 -6 -6 -6 -6 -5 ------- Run | Yrd Mat Sub Mat Fac Fac Low Low Dat Pro Active Infowar (turns) 2762 | . 1381 85 159 459 598 30 42 . 8 Sensors 646 | . . . 49 . 597 . . . . Structural 815 | . . . . 248 567 . . . . Jamming 389 | . . . . . 389 . . . . ECM 1867 | . 1381 85 110 211 . 30 42 . 8 Robot Analysis Total 8 | . 3 . 2 3 . . . . . Derelict Logs Recovered 4 | . . . . . . 1 1 . 2 Drone Launches . | . . . . . . . . . . Drone Recoveries . | . . . . . . . . . . Exploration | -11 -10 -10 -8 -7 -6 -6 -6 -6 -5 ------------- Run | Yrd Mat Sub Mat Fac Fac Low Low Dat Pro Turns Passed 6759 | 60 1524 1743 1337 460 710 166 209 23 527 Spaces Moved 6247 | 34 721 981 1030 987 743 422 593 83 653 Core 208 | 5 . . 9 . 194 . . . . Treads 1776 | 29 721 981 45 . . . . . . Legs 452 | . . . 452 . . . . . . Wheels . | . . . . . . . . . . Hover 2045 | . . . 524 987 534 . . . . Flight 1766 | . . . . . 15 422 593 83 653 Fastest Speed 26 | 50 160 160 38 34 34 26 26 28 28 Average Speed 80 | 143 160 160 86 34 76 26 26 28 28 Slowest Speed 400 | 160 160 160 400 38 400 34 28 28 30 Overloaded Moves . | . . . . . . . . . . Propulsion Burnouts . | . . . . . . . . . . Robots Hopped 2 | . . . . . . 1 1 . . Potential Cave-ins 2 | . . . . 2 . . . . . Cave-ins Triggered . | . . . . . . . . . . Exploration Rate (%) 53 | 4 96 59 68 36 26 48 77 68 53 Regions Visited 9 Branch Regions 5 Pre-discovered Areas 3 | . . 1 . . . . . 1 1 Known Exits Taken 5 | . . . 1 1 . 1 1 1 . Unknown Exits Taken 4 | 1 1 1 . . 1 . . . . Scrap Searched 12 | . . 2 . . . 1 4 . 5 Spaces Dug 35 | . . 7 . 15 13 . . . . Terrain Destroyed 127 | . 14 47 38 15 13 . . . . Melee 28 | . . . . 15 13 . . . . Projectile 12 | . . 7 5 . . . . . . AOE 87 | . 14 40 33 . . . . . . Terrain Rammed . | . . . . . . . . . . Walls Destroyed . | . . . . . . . . . . Machines Disabled . | . . . . . . . . . . Actions | -11 -10 -10 -8 -7 -6 -6 -6 -6 -5 --------- Run | Yrd Mat Sub Mat Fac Fac Low Low Dat Pro Total 7503 | 42 941 1100 1340 1058 829 473 646 82 992 Wait 719 | . 82 49 129 8 38 39 42 . 332 Move 6234 | 33 720 980 1029 986 742 419 590 82 653 Hop 2 | . . . . . . 1 1 . . Pick Up 52 | 1 15 1 17 10 1 4 1 . 2 Fast Attach 47 | 7 8 5 17 1 4 3 2 . . Attach 26 | . . 2 8 4 6 5 . . 1 Detach 11 | . . 3 2 2 1 1 2 . . Swap 35 | . 7 2 12 4 6 1 3 . . Drop 54 | 1 13 3 19 7 4 . 5 . 2 Fire 272 | . 94 53 106 19 . . . . . Melee 46 | . . . . 17 27 . . . 2 Ram 1 | . . . 1 . . . . . . Kick . | . . . . . . . . . . Crush 2 | . 2 . . . . . . . . Escape Stasis . | . . . . . . . . . . Rewire . | . . . . . . . . . . Trap . | . . . . . . . . . . Miscellaneous 2 | . . 2 . . . . . . . Route ------- -11/Scrapyard -10/Materials (discovered 6 exits: *Mat x3 / [*Min x2] / *Sub) -10/Subcaves -8/Materials (discovered 2 exits: *Fac x2) -7/Factory (discovered 3 exits: *Fac / Low x2) -6/Factory -6/Lower Caves -6/Lower Caves -6/Data Miner -5/Proximity Caves History --------- Turn | Location | Event 15 | -11/Scrapyard | Discovered new exit (range 15) 61 | -11/Scrapyard | Entered Materials 313 | -10/Materials | Build established: Mutant 335 | -10/Materials | Discovered new exit (range 10) 500 | -10/Materials | Discovered new exit (range 6) 552 | -10/Materials | Discovered new exit (range 11) 664 | -10/Materials | Discovered new exit (range 14) 850 | -10/Materials | Identified exit to Materials 1315 | -10/Materials | Discovered new exit (range 9) 1362 | -10/Materials | Build established: Scavenger-Mutant 1456 | -10/Materials | Repaired ECM Suite 1484 | -10/Materials | Repaired Lgt. Treads 1515 | -10/Materials | Repaired Lgt. Treads 1585 | -10/Materials | Entered Subcaves 1586 | -10/Subcaves | Approached by a straggling Scientist 1596 | -10/Subcaves | Ambushed by Subdweller buried in earth 1601 | -10/Subcaves | Core integrity fell below 50% 1673 | -10/Subcaves | Lost 4 parts (1p3w) 1925 | -10/Subcaves | Shifting Twisted Machinery released Mak. Thermal Plating 1930 | -10/Subcaves | Build established: Mutant 2267 | -10/Subcaves | Shifting Twisted Machinery released Mak. Light Armor Plating 2267 | -10/Subcaves | Shifting Twisted Machinery released Sub. Shrapnel Launcher 2279 | -10/Subcaves | Shifting Twisted Machinery released Battle Rifle 2449 | -10/Subcaves | Visited 4L-MR0's lab 2491 | -10/Subcaves | Found Powered Cannon 2492 | -10/Subcaves | Attached Powered Cannon, gained temporary slot: Power 2591 | -10/Subcaves | Learned location of Zion (-7) 2591 | -10/Subcaves | Met a Zionite searching for "candidates" 2688 | -10/Subcaves | Core integrity fell below 20% 2748 | -10/Subcaves | Shifting Twisted Machinery released Flamer 2749 | -10/Subcaves | Shifting Twisted Machinery released Unknown Energy Gun 2820 | -10/Subcaves | A swath of the cavern ceiling suddenly collapsed 3312 | -10/Subcaves | Discovered new exit (range 10) 3328 | -10/Subcaves | Entered Materials 3328 | -8/Materials | Evolved 4 slots: Propulsion x2, Utility x2 3583 | -8/Materials | Lost 4 parts (3u1w) 3825 | -8/Materials | Build established: Scavenger-Mutant 3830 | -8/Materials | Discovered new exit (range 15) 4131 | -8/Materials | Repaired Carbon-fiber Leg 4194 | -8/Materials | Discovered new exit (range 3) 4197 | -8/Materials | Identified exit to Factory 4512 | -8/Materials | Central database locked down 4657 | -8/Materials | Build established: Mutant 4665 | -8/Materials | Entered Factory 4665 | -7/Factory | Accompanied by 1 ally 4665 | -7/Factory | Evolved 2 slots: Propulsion x1, Utility x1 4939 | -7/Factory | Identified exit to Lower Caves 4974 | -7/Factory | Build established: Hacker-Mutant 5115 | -7/Factory | Discovered new exit (range 7) 5125 | -7/Factory | Identified exit to Factory 5125 | -7/Factory | Entered another Factory area 5125 | -6/Factory | Evolved 2 slots: Utility x2 5452 | -6/Factory | Build established: Hacker-Assassin 5717 | -6/Factory | Garrison activated, responded to threat 5730 | -6/Factory | Released all parts (4) 5742 | -6/Factory | Core integrity fell below 50% 5760 | -6/Factory | Lost 11 parts (1p6n3u1w) 5823 | -6/Factory | Discovered new exit (range 14) 5835 | -6/Factory | Entered Lower Caves 5836 | -6/Lower Caves | Encountered a Warlord checkpoint 5883 | -6/Lower Caves | Learned Factory stockpile data 5998 | -6/Lower Caves | Discovered new exit (range 7) 5999 | -6/Lower Caves | Identified exit to Lower Caves 6001 | -6/Lower Caves | Entered another Lower Caves area 6052 | -6/Lower Caves | Learned Factory security intel 6122 | -6/Lower Caves | Encountered a Warlord checkpoint 6129 | -6/Lower Caves | Build established: Sprinter 6154 | -6/Lower Caves | Discovered new exit (range 15) 6157 | -6/Lower Caves | Identified exit to Data Miner 6175 | -6/Lower Caves | Found Prototype Device 6175 | -6/Lower Caves | Identified Heart of Steel 6195 | -6/Lower Caves | Attracted the attention of an 0b10 outpost 6199 | -6/Lower Caves | Core integrity fell below 20% 6210 | -6/Lower Caves | Entered Data Miner 6210 | -6/Data Miner | Discovered new exit (range 6) 6216 | -6/Data Miner | Met Data Miner 6222 | -6/Data Miner | Learned location of Section 7 (-2) 6222 | -6/Data Miner | Acquired the access code to Warlord's prototype stash 6226 | -6/Data Miner | Received God Mode back door access code from Data Miner 6232 | -6/Data Miner | Identified exit to Proximity Caves 6233 | -6/Data Miner | Entered Proximity Caves 6280 | -5/Proximity Caves | Acquired the password to a Derelict Tinkerer's latest research 6284 | -5/Proximity Caves | Found Prototype Special Weapon 6312 | -5/Proximity Caves | Escorted by Enhanced Grunt 6526 | -5/Proximity Caves | Received a Behemoth hack from an annoying Tinkerer 6678 | -5/Proximity Caves | Attracted the attention of an 0b10 outpost 6701 | -5/Proximity Caves | Caught by Unaware searching for contraband prototypes 6724 | -5/Proximity Caves | Learned location of Armory (-3) 6734 | -5/Proximity Caves | Lost 3 parts (1n2u) 6760 | -5/Proximity Caves | Destroyed by S-27 Virus with Autogun Last Messages --------------- 06701_ Discarded Heart of Steel. 06702_ ECM Suite destroyed. 06703_ Reaction Control System destroyed. 06704_ Hvy. Laser fries itself beyond repair. 06714_ Acquired derelict log, extracted data. Data stored: Warlord entrances (x1). 06724_ Acquired derelict log, extracted data. World map updated: -3/Armory. 06728_ Searching scrap... 06728_ Found Hcp. Matter Pod. 06728_ Found 46 Matter. 06729_ Acquired 46 matter. 06747_ C-45 Heavy ARC bursts open, deploying its payload. 06747_ G-67 Veteran unfolds itself. 06747_ B-60 Warrior unfolds itself. 06747_ G-50 Soldier unfolds itself. 06747_ E-15 Imp unfolds itself. 06752_ Slug penetrates Wall. 06759_ S-27 Virus destroyed. 06759_ Cesium-ion Thruster destroyed. Map ----- +----------------------------------------------------+ | ?### #??????##### ## #??# ### ##??????????? | | ?# #??????????# ## #??# # #??????????? | | ?# ###??????????# ## #??# #??????????? | | ?# ##??????????## # #### #??????????? | | ## ##??######## #??????????? | | # #??# #?????????????????? | | # ##?# ##### #### ##?????????????????? | | ### #???## ##?## ##??????????????????? | | #????### #?## #???????????????????? | | ########??# ### ##???????????????????? | | #??## #?# ## ##????????????????????? | | ##### % ## # ###?????????????????????? | | #?# %% ##???????????????????????? | | #### ## % ## #????????????????????????? | | ???# ##### ### #????????????????????????? | | ???#" ###?????# #?# ####?????????????????????? | | ???#% #??????## ##?# #?????????????????????? | | #??#" ##????## ##?# #?????????????????????? | | #### ##??## ###### #?????????????????????? | | ##?# #???# #?????????????????????? | | #?## ##??# #?????????????????????? | | #?## ##?# #?????????????????????? | | ### #?### #?# #?????????????????????? | | ##?#? ####?## #?#e ##????????????????????? | | ##????# #??## #?# ##???????????????????? | | ## ##### ###?# ##?#@ #???????????????????? | | ### ## ### ##??#%= #??????????????????? | | #?# ## #???#ss #???????????????? | | #?# #?# #??? ss #???????????????? | | #?## ##?# #??? #??????????????? | | #??### ##?## #??? ##??????????????? | | #????## ####?## #??? #???????????????? | | ###???###???## #??# ## ??????????????? | | "#????????## ##?# #? #?????????????? | | #???????## ## #?????????????? | | ###?????# ##?????????????? | | ####### #??????????????? | | #??????????????? | | * ????????????????? | | % ### ### ???????????????????? | | ##?# ####??? ???????????????????? | | ## ##?? #??????? ???????????????????? | | ## "#??# ##???????????????????????????? | | #######?? ##????????????????????????????? | | #???????? ##?????????????????????????????? | | ##???????## #####??????????????????????????????? | | #?????????###???????????????????????????????????? | | #???????????????????????????????????????????????? | | ##???????????????????????????????????????????????? | | ?????????????????????????????????????????????????? | +----------------------------------------------------+ Best States ------------- Heat Dissipation 37 Coolant Potential 50 Energy Generation 18 Energy Capacity 280 Matter Stores 400 Matter Capacity 400 Sight Range 16 Robot Scan Range 15 Terrain Scan Density 10 ECM Strength 1 Jamming Range 12 Armor Coverage 600 Resistance: TH 10 Evasion (%) 72 Recoil Reduction 2 Offensive Hacking 20 Item Schematics ----------------- Aerolev Unit | -8/Materials | Scanalyzed Plasma Cutter | -8/Materials | Scanalyzed ECM Suite | -8/Materials | Scanalyzed Machine Analyzer | -8/Materials | Scanalyzed Med. Insulated Plating | -6/Factory | Extracted Component Analysis Suite | -6/Factory | Extracted Flexi-carbon Leg | -6/Factory | Extracted Arc Projector | -6/Factory | Extracted Imp. Medium Treads | -6/Factory | Extracted Combat Drone Bay | -6/Data Miner | Free Lgt. Regenerative Plating | -6/Data Miner | Free Imp. Energy Well | -6/Data Miner | Free Kinetic Spear | -6/Data Miner | Free Field Propulsion Array | -6/Data Miner | Free Imp. System Guard | -6/Data Miner | Free Force Lance | -6/Data Miner | Free Shield Leg | -6/Data Miner | Free Antimatter Reactor | -6/Data Miner | Free Impulse Thruster Array | -6/Data Miner | Free Enh. Armored Leg | -6/Data Miner | Free Robot Schematics ------------------ S-27 Virus | -6/Data Miner | Free B-60 Warrior | -6/Data Miner | Free X-62 Marksman | -6/Data Miner | Free H-66 Slayer | -6/Data Miner | Free A-15 Conveyor | -6/Data Miner | Free G-50 Soldier | -6/Data Miner | Free O-32 Director | -6/Data Miner | Free Fabricated ------------ Nothing Repaired ---------- ECM Suite | 5% | -10/Materials Lgt. Treads | 73% | -10/Materials Lgt. Treads | 33% | -10/Materials Carbon-fiber Leg | 6% | -8/Materials Studied --------- Plasma Cutter | -8/Materials | Hacked Imp. Datajack | -8/Materials | Hacked Assault Cannon | -8/Materials | Hacked Flak Cannon | -8/Materials | Hacked Xenon Bombardment Thruster | -6/Factory | Hacked Alien Tech Used ----------------- None Achievements -------------- None Challenges ------------ None Game ------ Seed PlexusPrecisionKit Manual? 0 Play Time 01:37:11 Cumulative 36.4 hours Start 2026.01.01 @ 19:03:03 End 2026.01.02 @ 01:13:47 Sessions 9 Manual Loads 0 Difficulty Rogue Special Mode None Game No. 32 Rogue 32 Adventurer 0 Explorer 0 Win Type - Total 0 Types 0/0/0/0/0/0/0/0/0/0 Lore% 32 Gallery% 28 Achievement% 26 Wizard Run 0 Options --------- Layout 0 ASCII 0 Keyboard 0 Movement Numpad Keybinds 0 Fullscreen 2 Font 24/Smallcaps Map View 76x50 Zoom Use 0% Tactical HUD 1 Map Filters NONE Filters NONE Steam 1 RUN: 20e2ec3d-bd71-4a64-8bf2-453a8def51cf